[Event "Karel Janecek Open 2025"]
[Site "Prague"]
[Date "2025.02.28"]
[Round "2.1"]
[White "Balinski, Damian"]
[Black "Pechac, Jergus"]
[Result "0-1"]
[Annotator "ChessBase"]
[ECO "D00"]
[WhiteElo "2202"]
[BlackElo "2603"]
[PlyCount "72"]
[EventDate "2025.02.21"]
[EventType "swiss"]
[EventCountry "CZE"]
[SourceTitle "playchess.com"]
[Source "ChessBase"]
[SourceQuality "1"]
[TimeControl "40/5400+30:1800+30"]

1. d4 {[%emt 0:03:47]} Nf6 {[%emt 0:04:10]} 2. e3 {[%emt 0:00:00]} d5 {[%emt 0:01:09]} 3. Bd3 {[%emt 0:00:00]} c5 {[%emt 0:00:19]} 4. c3 {[%emt 0:00:00]} Nc6 {[%emt 0:00:59]} 5. f4 {[%emt 0:00:00]} Bg4 {[%emt 0:02:02]} 6. Nf3 {[%emt 0:00:00]} e6 {[%emt 0:00:16]} 7. O-O {[%emt 0:00:00]} Be7 {[%emt 0:00:43]} 8. Nbd2 {[%emt 0:00:00]} Qc7 {[%emt 0:01:03]} 9. Qe1 {[%emt 0:03:12]} O-O {[%emt 0:01:50]} 10. Ne5 {[%emt 0:00:55]} Bf5 {[%emt 0:00:07]} 11. Qe2 {[%emt 0:01:07]} Rab8 {[%emt 0:05:21]} 12. h3 {[%emt 0:23:53]} Bxd3 {[%emt 0:01:49]} 13. Qxd3 {[%emt 0:01:05]} b5 {[%emt 0:00:12]} 14. a3 {[%emt 0:03:32]} a5 {[%emt 0:01:50]} 15. g4 {[%emt 0:07:08]} g6 {[%emt 0:01:44]} 16. g5 {[%emt 0:03:07]} Nh5 {[%emt 0:00:16]} 17. Kg2 {[%emt 0:06:36]} c4 {[%emt 0:03:58]} 18. Qe2 {[%emt 0:06:06]} Nxe5 {[%emt 0:00:12]} 19. dxe5 {[%emt 0:01:26]} b4 {[%emt 0:00:19]} 20. axb4 {[%emt 0:04:17]} axb4 {[%emt 0:00:55]} 21. Ra2 {[%emt 0:06:56]} Ra8 {[%emt 0:05:00]} 22. Rxa8 {[%emt 0:00:52]} Rxa8 {[%emt 0:00:03]} 23. Nf3 {[%emt 0:08:16]} Ra2 {[%emt 0:01:45]} 24. Qc2 {[%emt 0:01:37]} Qb6 {[%emt 0:02:09]} 25. Qb1 {[%emt 0:06:18]} b3 {[%emt 0:05:46]} 26. Bd2 {[%emt 0:00:32]} Ba3 {[%emt 0:02:09]} 27. bxa3 {[%emt 0:04:17]} Qxe3 {[%emt 0:00:07]} 28. Rf2 {[%emt 0:05:47]} Nxf4+ {[%emt 0:00:38]} 29. Kg3 {[%emt 0:01:11]} Ne2+ {[%emt 0:01:27]} 30. Kg2 {[%emt 0:00:16]} Rxd2 {[%emt 0:01:19]} 31. Nxd2 {[%emt 0:00:28]} Qxd2 {[%emt 0:00:22]} 32. a4 {[%emt 0:02:50]} b2 {[%emt 0:00:50]} 33. a5 {[%emt 0:00:39]} Qxg5+ {[%emt 0:00:40]} 34. Kh1 {[%emt 0:00:48]} Qc1+ {[%emt 0:00:12]} 35. Rf1 {[%emt 0:00:14]} Ng3+ {[%emt 0:00:04]} 36. Kg2 {[%emt 0:00:12]} Nxf1 {[%emt 0:00:11]} 0-1

[Event "Karel Janecek Open 2025"]
[Site "Prague"]
[Date "2025.02.28"]
[Round "2.2"]
[White "Nyzhnyk, Illya"]
[Black "Dwilewicz, Katarzyna"]
[Result "1-0"]
[Annotator "ChessBase"]
[ECO "D02"]
[WhiteElo "2569"]
[BlackElo "2190"]
[PlyCount "63"]
[EventDate "2025.02.21"]
[EventType "swiss"]
[EventCountry "CZE"]
[SourceTitle "playchess.com"]
[Source "ChessBase"]
[SourceQuality "1"]
[TimeControl "40/5400+30:1800+30"]

1. d4 {[%emt 0:00:09]} d5 {[%emt 0:00:17]} 2. Nf3 {[%emt 0:00:20]} Nf6 {[%emt 0:00:23]} 3. Bf4 {[%emt 0:00:07]} e6 {[%emt 0:00:37]} 4. e3 {[%emt 0:00:07]} Bd6 {[%emt 0:00:15]} 5. Ne5 {[%emt 0:00:07]} a6 {[%emt 0:04:48]} 6. c3 {[%emt 0:04:04]} Qe7 {[%emt 0:03:30]} 7. Nd2 {[%emt 0:00:40]} Nbd7 {[%emt 0:00:53]} 8. Qf3 {[%emt 0:04:42]} Nf8 {[%emt 0:04:43]} 9. Qh3 {[%emt 0:02:07]} Bd7 {[%emt 0:03:35]} 10. Bd3 {[%emt 0:03:47]} Bb5 {[%emt 0:05:01]} 11. Bc2 {[%emt 0:00:36]} O-O-O {[%emt 0:05:30]} 12. a4 {[%emt 0:00:22]} Bd7 {[%emt 0:00:16]} 13. Bg3 {[%emt 0:02:05]} g5 {[%emt 0:06:38]} 14. Qh6 {[%emt 0:05:33]} Rg8 {[%emt 0:01:15]} 15. h4 {[%emt 0:00:55]} Bxe5 {[%emt 0:09:02]} 16. dxe5 {[%emt 0:00:38]} Ng4 {[%emt 0:00:11]} 17. Qh5 {[%emt 0:00:05]} f5 {[%emt 0:00:07]} 18. hxg5 {[%emt 0:00:45]} Rxg5 {[%emt 0:05:27]} 19. Qh3 {[%emt 0:00:54]} Qg7 {[%emt 0:03:21]} 20. Bf4 {[%emt 0:06:55]} Rg6 {[%emt 0:00:59]} 21. Nf3 {[%emt 0:00:06]} Qe7 {[%emt 0:06:00]} 22. Nh4 {[%emt 0:00:38]} Rg8 {[%emt 0:04:24]} 23. f3 {[%emt 0:00:20]} d4 {[%emt 0:01:31]} 24. exd4 {[%emt 0:00:39]} Ng6 {[%emt 0:00:23]} 25. Nxg6 {[%emt 0:00:15]} hxg6 {[%emt 0:00:07]} 26. fxg4 {[%emt 0:00:06]} g5 {[%emt 0:00:51]} 27. Bd2 {[%emt 0:00:12]} Rh8 {[%emt 0:00:05]} 28. Qxh8 {[%emt 0:00:06]} Rxh8 {[%emt 0:00:05]} 29. Rxh8+ {[%emt 0:00:06]} Be8 {[%emt 0:00:03]} 30. gxf5 {[%emt 0:00:15]} c5 {[%emt 0:02:32]} 31. f6 {[%emt 0:00:14]} Qf7 {[%emt 0:00:11]} 32. O-O-O {[%emt 0:00:07]} 1-0

[Event "Karel Janecek Open 2025"]
[Site "Prague"]
[Date "2025.02.28"]
[Round "2.3"]
[White "Welling, Gerard"]
[Black "Grigoryan, Karen H."]
[Result "0-1"]
[Annotator "ChessBase"]
[ECO "A09"]
[WhiteElo "2195"]
[BlackElo "2554"]
[PlyCount "72"]
[EventDate "2025.02.21"]
[EventType "swiss"]
[EventCountry "CZE"]
[SourceTitle "playchess.com"]
[Source "ChessBase"]
[SourceQuality "1"]
[TimeControl "40/5400+30:1800+30"]

1. g3 {[%emt 0:00:04]} e5 {[%emt 0:00:45]} 2. Bg2 {[%emt 0:00:07]} d5 {[%emt 0:00:08]} 3. d3 {[%emt 0:00:27]} c5 {[%emt 0:00:58]} 4. c4 {[%emt 0:05:52]} d4 {[%emt 0:00:20]} 5. Nf3 {[%emt 0:00:26]} Nc6 {[%emt 0:00:14]} 6. O-O {[%emt 0:00:09]} f6 {[%emt 0:01:07]} 7. e3 {[%emt 0:02:30]} Bd6 {[%emt 0:00:19]} 8. exd4 {[%emt 0:00:06]} cxd4 {[%emt 0:00:07]} 9. Nh4 {[%emt 0:08:25]} Nge7 {[%emt 0:06:13]} 10. a3 {[%emt 0:08:07]} g5 {[%emt 0:02:25]} 11. Qh5+ {[%emt 0:02:49]} Kd7 {[%emt 0:00:09]} 12. Nf3 {[%emt 0:00:29]} Kc7 {[%emt 0:00:19]} 13. b4 {[%emt 0:01:00]} Ng6 {[%emt 0:01:36]} 14. Nbd2 {[%emt 0:03:04]} Qg8 {[%emt 0:01:37]} 15. Ne4 {[%emt 0:02:59]} Be7 {[%emt 0:00:11]} 16. Bd2 {[%emt 0:08:49]} Bf5 {[%emt 0:04:40]} 17. b5 {[%emt 0:01:37]} Bxe4 {[%emt 0:08:20]} 18. dxe4 {[%emt 0:00:09]} Nd8 {[%emt 0:00:04]} 19. Bb4 {[%emt 0:00:37]} Ne6 {[%emt 0:00:18]} 20. Bxe7 {[%emt 0:04:46]} Nxe7 {[%emt 0:00:08]} 21. Bh3 {[%emt 0:02:35]} Nc5 {[%emt 0:00:22]} 22. Nd2 {[%emt 0:01:23]} Qg6 {[%emt 0:00:17]} 23. Qd1 {[%emt 0:05:23]} Rad8 {[%emt 0:04:52]} 24. Qb1 {[%emt 0:03:31]} Qh6 {[%emt 0:06:32]} 25. Bg4 {[%emt 0:08:53]} Qf8 {[%emt 0:00:17]} 26. a4 {[%emt 0:01:25]} h5 {[%emt 0:00:24]} 27. Bf5 {[%emt 0:05:42]} Kb8 {[%emt 0:01:31]} 28. a5 {[%emt 0:00:23]} g4 {[%emt 0:01:46]} 29. f4 {[%emt 0:03:07]} Nxf5 {[%emt 0:00:38]} 30. exf5 {[%emt 0:00:04]} h4 {[%emt 0:00:52]} 31. Ne4 {[%emt 0:02:01]} hxg3 {[%emt 0:00:14]} 32. Nxg3 {[%emt 0:00:32]} Qh6 {[%emt 0:00:40]} 33. Ra2 {[%emt 0:01:30]} exf4 {[%emt 0:00:55]} 34. Ne4 {[%emt 0:00:06]} d3 {[%emt 0:00:31]} 35. Nxc5 {[%emt 0:02:23]} d2 {[%emt 0:00:07]} 36. Na6+ {[%emt 0:00:03]} Kc8 {[%emt 0:00:06]} 0-1

[Event "Karel Janecek Open 2025"]
[Site "Prague"]
[Date "2025.02.28"]
[Round "2.4"]
[White "Sasikiran, Krishnan"]
[Black "Chakrabarty, Reyaansh"]
[Result "1-0"]
[Annotator "ChessBase"]
[ECO "A14"]
[WhiteElo "2548"]
[BlackElo "2181"]
[PlyCount "77"]
[EventDate "2025.02.21"]
[EventType "swiss"]
[EventCountry "CZE"]
[SourceTitle "playchess.com"]
[Source "ChessBase"]
[SourceQuality "1"]
[TimeControl "40/5400+30:1800+30"]

1. d4 {[%emt 0:03:15]} d5 {[%emt 0:00:05]} 2. c4 {[%emt 0:00:25]} e6 {[%emt 0:00:04]} 3. Nf3 {[%emt 0:00:21]} Nf6 {[%emt 0:00:07]} 4. g3 {[%emt 0:00:10]} Be7 {[%emt 0:00:04]} 5. Bg2 {[%emt 0:00:11]} O-O {[%emt 0:00:06]} 6. O-O {[%emt 0:00:16]} c6 {[%emt 0:00:11]} 7. Nc3 {[%emt 0:00:51]} a5 {[%emt 0:00:05]} 8. b3 {[%emt 0:01:35]} b6 {[%emt 0:00:10]} 9. Bb2 {[%emt 0:03:43]} Ba6 {[%emt 0:01:27]} 10. a3 {[%emt 0:01:50]} Nbd7 {[%emt 0:02:54]} 11. Nd2 {[%emt 0:11:26]} Rc8 {[%emt 0:06:34]} 12. e3 {[%emt 0:02:19]} c5 {[%emt 0:08:50]} 13. Nb5 {[%emt 0:02:50]} cxd4 {[%emt 0:02:29]} 14. exd4 {[%emt 0:02:12]} Bxb5 {[%emt 0:09:59]} 15. cxb5 {[%emt 0:00:13]} Bd6 {[%emt 0:00:20]} 16. Re1 {[%emt 0:04:55]} Qe7 {[%emt 0:10:56]} 17. Bf1 {[%emt 0:05:24]} Rfe8 {[%emt 0:02:50]} 18. Bd3 {[%emt 0:05:56]} e5 {[%emt 0:05:53]} 19. Bf5 {[%emt 0:14:16]} e4 {[%emt 0:00:22]} 20. Nf1 {[%emt 0:02:20]} g6 {[%emt 0:02:47]} 21. Bh3 {[%emt 0:00:45]} Rc7 {[%emt 0:02:46]} 22. Ne3 {[%emt 0:11:02]} Qd8 {[%emt 0:00:32]} 23. Rc1 {[%emt 0:03:13]} Nf8 {[%emt 0:03:01]} 24. Rxc7 {[%emt 0:01:57]} Qxc7 {[%emt 0:01:48]} 25. Re2 {[%emt 0:02:52]} Qe7 {[%emt 0:01:11]} 26. Rc2 {[%emt 0:03:41]} Bxa3 {[%emt 0:02:47]} 27. Bxa3 {[%emt 0:01:45]} Qxa3 {[%emt 0:00:01]} 28. Rc6 {[%emt 0:00:13]} Ne6 {[%emt 0:00:11]} 29. Kg2 {[%emt 0:07:06]} Kg7 {[%emt 0:09:12]} 30. Rxb6 {[%emt 0:02:46]} Qb4 {[%emt 0:00:19]} 31. Bxe6 {[%emt 0:02:09]} Rxe6 {[%emt 0:00:08]} 32. Rb7 {[%emt 0:01:20]} Rd6 {[%emt 0:04:40]} 33. Qc2 {[%emt 0:02:36]} Qxd4 {[%emt 0:00:33]} 34. Qc8 {[%emt 0:00:09]} Rb6 {[%emt 0:02:35]} 35. Ra7 {[%emt 0:01:07]} Re6 {[%emt 0:01:57]} 36. Qc7 {[%emt 0:00:35]} Qe5 {[%emt 0:01:13]} 37. Qxf7+ {[%emt 0:00:25]} Kh6 {[%emt 0:00:00]} 38. Ra6 {[%emt 0:00:44]} Qh5 {[%emt 0:03:35]} 39. Rxe6 {[%emt 0:00:31]} 1-0

[Event "Karel Janecek Open 2025"]
[Site "Prague"]
[Date "2025.02.28"]
[Round "2.5"]
[White "Yasmo, Daniil"]
[Black "Vetoshko, Volodymyr"]
[Result "0-1"]
[Annotator "ChessBase"]
[ECO "A19"]
[WhiteElo "2172"]
[BlackElo "2529"]
[PlyCount "46"]
[EventDate "2025.02.21"]
[EventType "swiss"]
[EventCountry "CZE"]
[SourceTitle "playchess.com"]
[Source "ChessBase"]
[SourceQuality "1"]
[TimeControl "40/5400+30:1800+30"]

1. e4 {[%emt 0:00:06]} c5 {[%emt 0:03:23]} 2. c4 {[%emt 0:00:06]} Nc6 {[%emt 0:00:51]} 3. Nc3 {[%emt 0:00:10]} e6 {[%emt 0:01:03]} 4. g3 {[%emt 0:00:14]} Nf6 {[%emt 0:06:38]} 5. Bg2 {[%emt 0:00:23]} d5 {[%emt 0:01:06]} 6. d3 {[%emt 0:09:29]} dxc4 {[%emt 0:10:28]} 7. dxc4 {[%emt 0:00:08]} Qxd1+ {[%emt 0:00:09]} 8. Kxd1 {[%emt 0:08:08]} Ng4 {[%emt 0:08:06]} 9. Nh3 {[%emt 0:03:30]} Be7 {[%emt 0:00:25]} 10. f3 {[%emt 0:07:00]} Nge5 {[%emt 0:00:39]} 11. b3 {[%emt 0:00:49]} O-O {[%emt 0:09:32]} 12. Be3 {[%emt 0:10:43]} Rd8+ {[%emt 0:10:56]} 13. Ke2 {[%emt 0:00:35]} Nd4+ {[%emt 0:00:30]} 14. Bxd4 {[%emt 0:00:38]} cxd4 {[%emt 0:00:05]} 15. Nd1 {[%emt 0:01:14]} b5 {[%emt 0:04:51]} 16. f4 {[%emt 0:02:42]} Nxc4 {[%emt 0:17:41]} 17. bxc4 {[%emt 0:12:48]} bxc4 {[%emt 0:00:07]} 18. Rb1 {[%emt 0:04:40]} Ba6 {[%emt 0:01:41]} 19. Ndf2 {[%emt 0:02:16]} Rac8 {[%emt 0:01:55]} 20. Rhc1 {[%emt 0:02:09]} Ba3 {[%emt 0:00:42]} 21. e5 {[%emt 0:07:13]} c3+ {[%emt 0:04:08]} 22. Nd3 {[%emt 0:00:05]} c2 {[%emt 0:04:53]} 23. Ra1 {[%emt 0:00:04]} Bb2 {[%emt 0:00:32]} 0-1

[Event "Karel Janecek Open 2025"]
[Site "Prague"]
[Date "2025.02.28"]
[Round "2.6"]
[White "Raja Rithvik R"]
[Black "Petran, Peter"]
[Result "1-0"]
[Annotator "ChessBase"]
[ECO "B06"]
[WhiteElo "2522"]
[BlackElo "2170"]
[PlyCount "73"]
[EventDate "2025.02.21"]
[EventType "swiss"]
[EventCountry "CZE"]
[SourceTitle "playchess.com"]
[Source "ChessBase"]
[SourceQuality "1"]
[TimeControl "40/5400+30:1800+30"]

1. d4 {[%emt 0:00:20]} g6 {[%emt 0:00:43]} 2. e4 {[%emt 0:00:40]} Bg7 {[%emt 0:00:07]} 3. Nf3 {[%emt 0:00:25]} c6 {[%emt 0:00:32]} 4. Bd3 {[%emt 0:00:55]} d5 {[%emt 0:00:46]} 5. e5 {[%emt 0:00:15]} Bg4 {[%emt 0:00:18]} 6. Nbd2 {[%emt 0:00:43]} f6 {[%emt 0:03:05]} 7. h3 {[%emt 0:06:25]} Bxf3 {[%emt 0:00:08]} 8. exf6 {[%emt 0:00:24]} exf6 {[%emt 0:02:52]} 9. Nxf3 {[%emt 0:00:05]} Nd7 {[%emt 0:06:50]} 10. O-O {[%emt 0:03:30]} Ne7 {[%emt 0:00:34]} 11. Re1 {[%emt 0:02:18]} O-O {[%emt 0:00:53]} 12. Bf4 {[%emt 0:00:21]} Re8 {[%emt 0:01:07]} 13. a4 {[%emt 0:04:21]} a5 {[%emt 0:00:21]} 14. Qd2 {[%emt 0:00:04]} Nb6 {[%emt 0:12:56]} 15. b3 {[%emt 0:05:17]} Nec8 {[%emt 0:09:32]} 16. Rxe8+ {[%emt 0:09:54]} Qxe8 {[%emt 0:00:06]} 17. c4 {[%emt 0:00:34]} Qf7 {[%emt 0:03:14]} 18. Rc1 {[%emt 0:10:40]} Bf8 {[%emt 0:04:20]} 19. c5 {[%emt 0:01:34]} Nd7 {[%emt 0:00:16]} 20. h4 {[%emt 0:00:52]} Bg7 {[%emt 0:06:44]} 21. Re1 {[%emt 0:04:49]} Nf8 {[%emt 0:07:13]} 22. Re2 {[%emt 0:01:18]} Ne6 {[%emt 0:02:19]} 23. Bg3 {[%emt 0:01:46]} Bf8 {[%emt 0:00:51]} 24. Qe1 {[%emt 0:15:17]} Ng7 {[%emt 0:00:23]} 25. Bf4 {[%emt 0:00:03]} Qd7 {[%emt 0:05:38]} 26. Bd2 {[%emt 0:03:48]} Qc7 {[%emt 0:02:36]} 27. Nh2 {[%emt 0:00:31]} f5 {[%emt 0:05:21]} 28. Nf3 {[%emt 0:02:44]} b6 {[%emt 0:01:05]} 29. Ng5 {[%emt 0:02:32]} bxc5 {[%emt 0:05:19]} 30. dxc5 {[%emt 0:00:13]} Qd7 {[%emt 0:04:27]} 31. Bxa5 {[%emt 0:03:13]} Bxc5 {[%emt 0:04:16]} 32. Bc3 {[%emt 0:00:21]} Bf8 {[%emt 0:04:15]} 33. Bxg7 {[%emt 0:06:20]} Kxg7 {[%emt 0:00:48]} 34. Re8 {[%emt 0:00:12]} Nb6 {[%emt 0:02:29]} 35. Ne6+ {[%emt 0:00:21]} Kf7 {[%emt 0:02:09]} 36. Rxf8+ {[%emt 0:00:06]} Rxf8 {[%emt 0:00:04]} 37. Nxf8 {[%emt 0:00:04]} 1-0

[Event "Karel Janecek Open 2025"]
[Site "Prague"]
[Date "2025.02.28"]
[Round "2.7"]
[White "Lorscheid, Gerhard"]
[Black "Beerdsen, Thomas"]
[Result "0-1"]
[Annotator "ChessBase"]
[ECO "D15"]
[WhiteElo "2168"]
[BlackElo "2511"]
[PlyCount "72"]
[EventDate "2025.02.21"]
[EventType "swiss"]
[EventCountry "CZE"]
[SourceTitle "playchess.com"]
[Source "ChessBase"]
[SourceQuality "1"]
[TimeControl "40/5400+30:1800+30"]

1. d4 {[%emt 0:00:04]} d5 {[%emt 0:00:30]} 2. c4 {[%emt 0:00:06]} c6 {[%emt 0:00:05]} 3. Nc3 {[%emt 0:00:13]} Nf6 {[%emt 0:00:07]} 4. e3 {[%emt 0:00:15]} a6 {[%emt 0:00:39]} 5. Nf3 {[%emt 0:01:25]} b5 {[%emt 0:00:28]} 6. c5 {[%emt 0:00:06]} Bg4 {[%emt 0:00:28]} 7. Qb3 {[%emt 0:03:59]} Nbd7 {[%emt 0:02:13]} 8. Be2 {[%emt 0:04:33]} g6 {[%emt 0:06:21]} 9. a4 {[%emt 0:01:46]} Bg7 {[%emt 0:03:49]} 10. h3 {[%emt 0:20:44]} Bxf3 {[%emt 0:01:06]} 11. Bxf3 {[%emt 0:00:03]} O-O {[%emt 0:01:03]} 12. O-O {[%emt 0:03:14]} e5 {[%emt 0:00:26]} 13. Qa3 {[%emt 0:08:40]} Rb8 {[%emt 0:04:47]} 14. b4 {[%emt 0:03:48]} Ne8 {[%emt 0:01:04]} 15. Rd1 {[%emt 0:01:43]} Nc7 {[%emt 0:00:42]} 16. g3 {[%emt 0:04:57]} Qf6 {[%emt 0:23:37]} 17. Bg2 {[%emt 0:00:48]} a5 {[%emt 0:01:48]} 18. axb5 {[%emt 0:01:34]} axb4 {[%emt 0:00:24]} 19. Qxb4 {[%emt 0:00:22]} Nxb5 {[%emt 0:00:19]} 20. Nxb5 {[%emt 0:02:37]} Rxb5 {[%emt 0:06:41]} 21. Qe1 {[%emt 0:06:38]} Re8 {[%emt 0:03:55]} 22. Ra7 {[%emt 0:01:25]} Qe6 {[%emt 0:15:42]} 23. Bf1 {[%emt 0:00:27]} Rb3 {[%emt 0:00:00]} 24. Qd2 {[%emt 0:07:25]} Nf6 {[%emt 0:04:27]} 25. Qa2 {[%emt 0:02:54]} Rbb8 {[%emt 0:00:00]} 26. Bg2 {[%emt 0:01:48]} h5 {[%emt 0:03:21]} 27. Bb2 {[%emt 0:04:05]} h4 {[%emt 0:00:00]} 28. gxh4 {[%emt 0:00:00]} Qf5 {[%emt 0:00:00]} 29. Bc3 {[%emt 0:02:08]} Ne4 {[%emt 0:00:00]} 30. Be1 {[%emt 0:04:06]} exd4 {[%emt 0:00:00]} 31. exd4 {[%emt 0:00:26]} Qh5 {[%emt 0:00:00]} 32. f3 {[%emt 0:01:37]} Nxc5 {[%emt 0:00:00]} 33. dxc5 {[%emt 0:07:47]} Rb2 {[%emt 0:00:00]} 34. Qa4 {[%emt 0:01:11]} Ree2 {[%emt 0:00:00]} 35. Bf1 {[%emt 0:01:51]} Qxf3 {[%emt 0:00:00]} 36. Qg4 {[%emt 0:00:02]} Qe3+ {[%emt 0:00:00]} 0-1

[Event "Karel Janecek Open 2025"]
[Site "Prague"]
[Date "2025.02.28"]
[Round "2.8"]
[White "Noe, Christopher"]
[Black "Mannion, Stephen R"]
[Result "0-1"]
[Annotator "ChessBase"]
[ECO "D02"]
[WhiteElo "2511"]
[BlackElo "2167"]
[PlyCount "78"]
[EventDate "2025.02.21"]
[EventType "swiss"]
[EventCountry "CZE"]
[SourceTitle "playchess.com"]
[Source "ChessBase"]
[SourceQuality "1"]
[TimeControl "40/5400+30:1800+30"]

1. Nf3 {[%emt 0:00:11]} d5 {[%emt 0:00:27]} 2. g3 {[%emt 0:00:12]} Nd7 {[%emt 0:00:08]} 3. d4 {[%emt 0:00:18]} Nb6 {[%emt 0:00:06]} 4. a4 {[%emt 0:00:06]} a5 {[%emt 0:00:10]} 5. Bg2 {[%emt 0:01:27]} Bf5 {[%emt 0:00:42]} 6. O-O {[%emt 0:02:35]} e6 {[%emt 0:00:16]} 7. Ne5 {[%emt 0:00:28]} c6 {[%emt 0:01:30]} 8. Bf4 {[%emt 0:04:42]} Nf6 {[%emt 0:03:00]} 9. Nd2 {[%emt 0:00:05]} h6 {[%emt 0:00:45]} 10. c3 {[%emt 0:00:29]} Be7 {[%emt 0:07:32]} 11. Qb3 {[%emt 0:03:04]} O-O {[%emt 0:00:49]} 12. Nd3 {[%emt 0:02:18]} g5 {[%emt 0:04:31]} 13. Be3 {[%emt 0:10:09]} Ng4 {[%emt 0:00:31]} 14. Rad1 {[%emt 0:11:00]} Qc7 {[%emt 0:14:06]} 15. c4 {[%emt 0:06:52]} Rad8 {[%emt 0:05:21]} 16. c5 {[%emt 0:15:46]} Nd7 {[%emt 0:00:43]} 17. Qc3 {[%emt 0:00:06]} Bf6 {[%emt 0:15:16]} 18. Nb3 {[%emt 0:00:49]} Nxe3 {[%emt 0:02:08]} 19. fxe3 {[%emt 0:00:03]} Ra8 {[%emt 0:00:06]} 20. e4 {[%emt 0:11:02]} Bg6 {[%emt 0:11:34]} 21. Nf2 {[%emt 0:05:04]} Bg7 {[%emt 0:02:43]} 22. exd5 {[%emt 0:05:32]} exd5 {[%emt 0:02:06]} 23. e4 {[%emt 0:00:05]} dxe4 {[%emt 0:11:10]} 24. Nxe4 {[%emt 0:00:08]} b6 {[%emt 0:03:27]} 25. Kh1 {[%emt 0:02:46]} bxc5 {[%emt 0:00:29]} 26. Nbxc5 {[%emt 0:00:41]} Nb6 {[%emt 0:04:05]} 27. Nf6+ {[%emt 0:08:29]} Bxf6 {[%emt 0:01:11]} 28. Rxf6 {[%emt 0:00:07]} Nd5 {[%emt 0:00:03]} 29. Bxd5 {[%emt 0:00:28]} cxd5 {[%emt 0:00:02]} 30. Re1 {[%emt 0:00:19]} Rae8 {[%emt 0:03:07]} 31. Rff1 {[%emt 0:00:17]} Rxe1 {[%emt 0:03:40]} 32. Rxe1 {[%emt 0:00:03]} Rb8 {[%emt 0:00:12]} 33. Kg1 {[%emt 0:01:44]} Qd8 {[%emt 0:00:39]} 34. Re5 {[%emt 0:00:38]} Rb4 {[%emt 0:00:34]} 35. Qe3 {[%emt 0:00:44]} Qd6 {[%emt 0:00:46]} 36. b3 {[%emt 0:02:17]} Kh7 {[%emt 0:00:26]} 37. h4 {[%emt 0:01:16]} gxh4 {[%emt 0:00:10]} 38. gxh4 {[%emt 0:00:02]} h5 {[%emt 0:01:55]} 39. Qf4 {[%emt 0:04:16]} Qxc5 {[%emt 0:02:17]} 0-1

[Event "Karel Janecek Open 2025"]
[Site "Prague"]
[Date "2025.02.28"]
[Round "2.9"]
[White "Kanakova, Natalie"]
[Black "Popovic, Dusan"]
[Result "0-1"]
[Annotator "ChessBase"]
[ECO "B07"]
[WhiteElo "2162"]
[BlackElo "2494"]
[PlyCount "62"]
[EventDate "2025.02.21"]
[EventType "swiss"]
[EventCountry "CZE"]
[SourceTitle "playchess.com"]
[Source "ChessBase"]
[SourceQuality "1"]
[TimeControl "40/5400+30:1800+30"]

1. e4 {[%emt 0:01:24]} d6 {[%emt 0:00:07]} 2. d4 {[%emt 0:00:08]} Nf6 {[%emt 0:00:06]} 3. Nc3 {[%emt 0:00:07]} e5 {[%emt 0:00:06]} 4. Nge2 {[%emt 0:00:38]} c6 {[%emt 0:00:28]} 5. g3 {[%emt 0:02:20]} Be7 {[%emt 0:00:35]} 6. Bg2 {[%emt 0:01:34]} b5 {[%emt 0:00:42]} 7. a3 {[%emt 0:06:17]} a5 {[%emt 0:04:27]} 8. d5 {[%emt 0:06:53]} Bb7 {[%emt 0:02:46]} 9. dxc6 {[%emt 0:01:35]} Bxc6 {[%emt 0:01:35]} 10. O-O {[%emt 0:00:47]} O-O {[%emt 0:00:38]} 11. Qd3 {[%emt 0:07:08]} Na6 {[%emt 0:06:47]} 12. Nd5 {[%emt 0:08:30]} Nc5 {[%emt 0:04:23]} 13. Nxf6+ {[%emt 0:00:53]} Bxf6 {[%emt 0:01:10]} 14. Qe3 {[%emt 0:00:28]} b4 {[%emt 0:01:45]} 15. axb4 {[%emt 0:03:49]} axb4 {[%emt 0:06:16]} 16. Bd2 {[%emt 0:00:47]} Qb6 {[%emt 0:03:21]} 17. Rxa8 {[%emt 0:15:32]} Rxa8 {[%emt 0:00:14]} 18. Nc1 {[%emt 0:00:16]} Qb7 {[%emt 0:12:49]} 19. Re1 {[%emt 0:04:02]} Ne6 {[%emt 0:04:24]} 20. Nb3 {[%emt 0:04:10]} Be7 {[%emt 0:22:25]} 21. Qd3 {[%emt 0:08:06]} Nc5 {[%emt 0:00:43]} 22. Qc4 {[%emt 0:03:24]} Nxe4 {[%emt 0:09:21]} 23. Qxb4 {[%emt 0:01:06]} Qd7 {[%emt 0:07:34]} 24. Bxe4 {[%emt 0:04:22]} d5 {[%emt 0:00:08]} 25. Bf5 {[%emt 0:01:25]} Qxf5 {[%emt 0:01:07]} 26. Qxe7 {[%emt 0:00:05]} d4 {[%emt 0:00:03]} 27. Na5 {[%emt 0:00:34]} Be4 {[%emt 0:00:28]} 28. f4 {[%emt 0:01:48]} f6 {[%emt 0:00:04]} 29. Nc4 {[%emt 0:06:02]} Bf3 {[%emt 0:01:17]} 30. Rf1 {[%emt 0:07:38]} Qh3 {[%emt 0:00:42]} 31. Rxf3 {[%emt 0:00:58]} Ra1+ {[%emt 0:00:07]} 0-1

[Event "Karel Janecek Open 2025"]
[Site "Prague"]
[Date "2025.02.28"]
[Round "2.10"]
[White "Ghazarian, Kirk"]
[Black "Krivanek, Vladimir"]
[Result "1-0"]
[Annotator "ChessBase"]
[ECO "D27"]
[WhiteElo "2493"]
[BlackElo "2156"]
[PlyCount "57"]
[EventDate "2025.02.21"]
[EventType "swiss"]
[EventCountry "CZE"]
[SourceTitle "playchess.com"]
[Source "ChessBase"]
[SourceQuality "1"]
[TimeControl "40/5400+30:1800+30"]

1. d4 {[%emt 0:00:04]} d5 {[%emt 0:01:42]} 2. c4 {[%emt 0:00:08]} dxc4 {[%emt 0:00:13]} 3. Nf3 {[%emt 0:00:05]} Nf6 {[%emt 0:00:41]} 4. e3 {[%emt 0:00:06]} e6 {[%emt 0:00:20]} 5. Bxc4 {[%emt 0:00:06]} a6 {[%emt 0:00:38]} 6. O-O {[%emt 0:00:28]} c5 {[%emt 0:00:54]} 7. Nc3 {[%emt 0:00:31]} b5 {[%emt 0:01:07]} 8. Be2 {[%emt 0:00:13]} Bb7 {[%emt 0:01:19]} 9. dxc5 {[%emt 0:01:56]} Bxc5 {[%emt 0:01:10]} 10. Qxd8+ {[%emt 0:00:26]} Kxd8 {[%emt 0:00:02]} 11. Nd2 {[%emt 0:00:11]} Ke7 {[%emt 0:03:18]} 12. Nb3 {[%emt 0:00:43]} Bb6 {[%emt 0:08:04]} 13. a4 {[%emt 0:04:54]} b4 {[%emt 0:01:09]} 14. a5 {[%emt 0:00:36]} Ba7 {[%emt 0:09:11]} 15. Na4 {[%emt 0:02:57]} Bd5 {[%emt 0:10:32]} 16. Nbc5 {[%emt 0:02:37]} Bxc5 {[%emt 0:01:56]} 17. Nxc5 {[%emt 0:00:03]} Rc8 {[%emt 0:00:20]} 18. Na4 {[%emt 0:01:28]} Nbd7 {[%emt 0:03:24]} 19. Bd2 {[%emt 0:02:29]} Rcb8 {[%emt 0:08:31]} 20. f3 {[%emt 0:04:54]} Kd8 {[%emt 0:09:28]} 21. Rfc1 {[%emt 0:06:27]} Bb3 {[%emt 0:12:05]} 22. e4 {[%emt 0:03:48]} e5 {[%emt 0:01:24]} 23. Rc6 {[%emt 0:02:49]} Rc8 {[%emt 0:01:07]} 24. Rxc8+ {[%emt 0:02:53]} Rxc8 {[%emt 0:00:50]} 25. Bxb4 {[%emt 0:01:09]} Bc4 {[%emt 0:05:11]} 26. Bd1 {[%emt 0:01:02]} Ne8 {[%emt 0:00:46]} 27. Rc1 {[%emt 0:00:51]} g6 {[%emt 0:00:29]} 28. b3 {[%emt 0:00:38]} Bd3 {[%emt 0:00:31]} 29. Be7+ {[%emt 0:00:11]} 1-0